bitfinex/quotes_ETHUSD_20230110
["timestamp","ask_amount","ask_price","bid_price","bid_amount"]
[1673311877800,1.19999304,1326.1,1326.0,2.9961702]
[1673311877953,1.13399304,1326.1,1326.0,2.9961702]
[1673311887118,1.13399304,1326.1,1326.0,4.86741402]
[1673311887440,1.13399304,1326.1,1326.0,12.40888402]
[1673311887441,0.00378728,1326.1,1326.0,12.40888402]
[1673311887655,0.00378728,1326.1,1326.0,12.47353924]
[1673311889334,1.13399304,1326.1,1326.0,10.60229542]
[1673311889705,1.13399304,1326.1,1326.0,12.47354432]
[1673311890007,1.13399304,1326.1,1326.0,3.06082542]
[1673311890175,1.13399304,1326.1,1326.0,2.9961702]
[1673311891466,1.13399304,1326.1,1326.0,10.5376402]
[1673311891631,1.13399304,1326.1,1326.0,3.06082542]
[1673311891841,1.13399304,1326.1,1326.0,2.9961702]
[1673311892299,1.13399304,1326.1,1326.0,4.86742505]
[1673311892470,0.00378728,1326.1,1326.0,12.40889505]
[1673311892681,0.00378728,1326.1,1326.0,12.47355027]
[1673311893244,10.25055378,1326.2,1326.0,15.90275375]
[1673311893422,2.89103767,1326.2,1326.0,14.0314989]
[1673311893628,2.82503767,1326.2,1326.0,14.0314989]
[1673311894361,10.36538767,1326.2,1326.0,14.0314989]
[1673311894567,1.13020576,1326.1,1326.0,14.0314989]
[1673311894783,1.13020576,1326.1,1326.0,15.90273837]
[1673311895364,10.43138767,1326.2,1326.0,15.90273837]
[1673311895581,17.97185767,1326.2,1326.0,14.0314989]
[1673311895727,16.27702576,1326.2,1326.0,14.0314989]
[1673311896407,8.73655576,1326.2,1326.0,14.0314989]
[1673311897783,8.73657853,1326.2,1326.0,14.0314989]
[1673311897951,7.60635,1326.2,1326.0,14.0314989]
[1673311898355,8.73656382,1326.2,1326.0,14.0314989]
[1673311898565,7.60635,1326.2,1326.0,14.0314989]
[1673311898987,8.73656389,1326.2,1326.0,14.0314989]
[1673311899243,7.60635,1326.2,1326.0,14.0314989]
[1673311899992,8.73656441,1326.2,1326.0,14.0314989]
[1673311900162,7.60635,1326.2,1326.0,14.0314989]
[1673311900356,8.73652447,1326.2,1326.0,14.0314989]
[1673311900698,8.73652464,1326.2,1326.0,14.0314989]
[1673311900913,7.60635,1326.2,1326.0,14.0314989]
[1673311901135,8.73652355,1326.2,1326.0,14.0314989]
[1673311901316,1.19617329,1326.2,1326.0,14.0314989]
[1673311901530,11.12014099,1326.3,1326.1,5.66875087]
[1673311901875,0.23196878,1326.3,1326.2,25.62102]
[1673311902081,2.99679031,1326.4,1326.3,0.066]
[1673311902243,2.99679031,1326.4,1326.3,1.526]
[1673311902457,0.17229992,1326.4,1326.3,33.94297064]
[1673311902707,0.17229992,1326.4,1326.3,41.06313048]
[1673311902966,0.17229992,1326.4,1326.3,43.86917538]
[1673311903151,0.17229992,1326.4,1326.3,44.56313048]
[1673311903486,0.17229992,1326.4,1326.3,47.36918036]
[1673311903653,0.17229992,1326.4,1326.3,40.39511036]
[1673311903865,0.17229992,1326.4,1326.3,39.82941036]
[1673311904131,0.17229992,1326.4,1326.3,33.52336048]
[1673311905120,0.17229992,1326.4,1326.3,31.65265245]
[1673311905332,0.17229992,1326.4,1326.3,20.38288245]
[1673311905578,0.17229992,1326.4,1326.3,12.84311245]
[1673311905751,0.17229992,1326.4,1326.3,27.92265245]
[1673311906966,0.17229992,1326.4,1326.3,35.46242245]
[1673311909246,0.17229992,1326.4,1326.3,27.92265245]
[1673311909433,0.17229992,1326.4,1326.3,35.46242245]
[1673311910814,0.17229992,1326.4,1326.3,27.92265245]
[1673311912003,0.17229992,1326.4,1326.3,20.38288245]
[1673311912215,0.17229992,1326.4,1326.3,27.92265245]
[1673311913177,0.17229992,1326.4,1326.3,27.92065245]
[1673311913328,0.17229992,1326.4,1326.3,27.92265245]
[1673311913964,0.17229992,1326.4,1326.3,35.46242245]
[1673311914808,0.17229992,1326.4,1326.3,36.14987767]
[1673311915790,0.17229992,1326.4,1326.3,28.61010767]
[1673311922886,16.71069992,1326.4,1326.3,3.81811044]
[1673311923092,25.4455584,1326.4,1326.3,0.7504361]
[1673311923734,27.14039031,1326.4,1326.3,0.7504361]
[1673311923974,26.01073183,1326.4,1326.3,0.7504361]
[1673311924108,29.4884757,1326.4,1326.3,0.7504361]
[1673311925251,27.79364379,1326.4,1326.3,0.7504361]
[1673311927211,27.79964634,1326.4,1326.3,0.7504361]
[1673311931201,29.44178724,1326.4,1326.3,0.7504361]
[1673311931355,27.74964634,1326.4,1326.3,0.7504361]
[1673311931564,35.28884634,1326.4,1326.3,0.7504361]
[1673311932517,34.72233876,1326.4,1326.3,0.7504361]
[1673311932744,29.44188263,1326.4,1326.3,0.7504361]
[1673311932978,29.44188263,1326.4,1326.3,0.68745522]
[1673311933724,35.28884634,1326.4,1326.3,0.68745522]
[1673311934037,36.98113673,1326.4,1326.3,0.68745522]
[1673311934406,35.28884634,1326.4,1326.3,0.68745522]
[1673311936034,35.23884634,1326.4,1326.3,0.68745522]
[1673311937667,38.06227618,1326.4,1326.3,0.68745522]
[1673311944389,35.80353231,1326.4,1326.3,0.68745522]
[1673311945969,39.75157946,1326.4,1326.3,0.68745522]
[1673311946177,1.83026175,1326.4,1326.3,0.68745522]
[1673311946550,2.8922994,1326.4,1326.3,0.68745522]
[1673311946704,1.20033757,1326.4,1326.3,0.68745522]
[1673311947588,2.8922994,1326.4,1326.3,0.68745522]
[1673311947797,10.4314994,1326.4,1326.3,0.68745522]
[1673311948016,2.9582994,1326.4,1326.3,0.68745522]
[1673311948171,17.9706994,1326.4,1326.3,0.68745522]
[1673311948376,18.0366994,1326.4,1326.3,0.68745522]
[1673311950401,10.4974994,1326.4,1326.3,0.68745522]
[1673311951185,18.0366994,1326.4,1326.3,0.68745522]
[1673311951393,10.4974994,1326.4,1326.3,0.68745522]
[1673311952295,18.0366994,1326.4,1326.3,0.68745522]
[1673311952709,9.36946175,1326.4,1326.3,0.68745522]
[1673311953773,16.90866175,1326.4,1326.3,0.68745522]
[1673311954031,19.16474707,1326.4,1326.3,0.68745522]
[1673311954403,4.08634707,1326.4,1326.3,0.68745522]
[1673311954601,1.76426175,1326.4,1326.3,0.68745522]
[1673311954811,2.89304497,1326.4,1326.3,0.68745522]
[1673311955283,10.43224497,1326.4,1326.3,0.68745522]
[1673311955501,10.49824497,1326.4,1326.3,0.68745522]
[1673311955864,10.49830609,1326.4,1326.3,0.68745522]
[1673311956091,9.36946175,1326.4,1326.3,0.68745522]
[1673311957754,16.90866175,1326.4,1326.3,0.68745522]
[1673311957976,19.16474707,1326.4,1326.3,0.68745522]
[1673311958402,19.16474707,1326.4,1326.3,0.68486167]
[1673311959894,26.70394707,1326.4,1326.3,0.68486167]
[1673311960066,25.01198524,1326.4,1326.3,0.68486167]
[1673311962214,9.93358524,1326.4,1326.3,0.68486167]
[1673311962527,2.39438524,1326.4,1326.3,0.68486167]
[1673311962684,2.32838524,1326.4,1326.3,0.68486167]
[1673311962898,4.02300491,1326.4,1326.3,0.68486167]
[1673311963955,11.56220491,1326.4,1326.3,0.68486167]
[1673311964213,11.62820491,1326.4,1326.3,0.68486167]
[1673311965214,11.62823526,1326.4,1326.3,0.68486167]
[1673311966367,19.16743526,1326.4,1326.3,0.68486167]
[1673311966825,17.47278524,1326.4,1326.3,0.68486167]
[1673311967845,19.16745243,1326.4,1326.3,0.68486167]
[1673311969226,11.62825243,1326.4,1326.3,0.68486167]
[1673311970055,4.08905243,1326.4,1326.3,0.68486167]
[1673311970258,4.02305243,1326.4,1326.3,0.68486167]
[1673311972251,11.56225243,1326.4,1326.3,0.68486167]
[1673311972518,19.16745243,1326.4,1326.3,0.68486167]
[1673311973094,26.70665243,1326.4,1326.3,0.68486167]
[1673311980874,26.70665243,1326.4,1326.3,0.68189354]
[1673311983106,4.08905243,1326.4,1326.3,0.68189354]
[1673311983318,4.02305243,1326.4,1326.3,0.68189354]
[1673311983647,2.32838524,1326.4,1326.3,0.68189354]
[1673311985209,12.69101508,1326.4,1326.3,0.68189354]
[1673311985398,12.75701508,1326.4,1326.3,0.68189354]
[1673311986713,18.04012976,1326.4,1326.3,0.68189354]
[1673311986926,20.95122818,1326.4,1326.3,0.68189354]
[1673311987445,23.21349928,1326.4,1326.3,0.68189354]
[1673311988278,20.30240086,1326.4,1326.3,0.68189354]
[1673311988487,12.76320086,1326.4,1326.3,0.68189354]
[1673311989978,5.22400086,1326.4,1326.3,0.68189354]
[1673311990466,12.76320086,1326.4,1326.3,0.68189354]
[1673311991662,27.84160086,1326.4,1326.3,0.68189354]
[1673311992920,20.30240086,1326.4,1326.3,0.68189354]
[1673311993298,18.04012976,1326.4,1326.3,0.68189354]
[1673311993736,2.40048678,1326.4,1326.3,0.68189354]
[1673311993945,2.33448678,1326.4,1326.3,0.68189354]
[1673311994610,9.87368678,1326.4,1326.3,0.68189354]
[1673311994765,11.63621094,1326.4,1326.3,0.68189354]
[1673311994976,2.40048678,1326.4,1326.3,0.68189354]
[1673311995186,27.77551662,1326.4,1326.3,0.68189354]
[1673311995445,27.84151662,1326.4,1326.3,0.68189354]
[1673311996406,20.30231662,1326.4,1326.3,0.68189354]
[1673311997326,12.76311662,1326.4,1326.3,0.68189354]
[1673311998875,18.04012976,1326.4,1326.3,0.68189354]
[1673312001993,10.50092976,1326.4,1326.3,0.68189354]
[1673312002679,9.93963859,1326.4,1326.3,0.68189354]
[1673312003429,9.93963859,1326.4,1326.3,0.67808548]
[1673312005636,2.40043859,1326.4,1326.3,0.67808548]
[1673312005846,2.33443859,1326.4,1326.3,0.67808548]
[1673312006063,12.69706843,1326.4,1326.3,0.67808548]
[1673312006221,9.93963859,1326.4,1326.3,0.67808548]
[1673312007270,12.76306843,1326.4,1326.3,0.67808548]
[1673312007919,5.22386843,1326.4,1326.3,0.67808548]
[1673312008381,2.40043859,1326.4,1326.3,0.67808548]
[1673312008691,9.87363859,1326.4,1326.3,0.67808548]
[1673312008851,9.93963859,1326.4,1326.3,0.67808548]
[1673312009371,12.76306843,1326.4,1326.3,0.67808548]
[1673312010976,20.30226843,1326.4,1326.3,0.67808548]
[1673312011576,18.04012976,1326.4,1326.3,0.67808548]
[1673312015207,26.88899834,1326.4,1326.3,0.67808548]
[1673312015521,31.49711414,1326.4,1326.3,0.67808548]
[1673312016169,34.99711414,1326.4,1326.3,0.67808548]
[1673312016389,35.29477478,1326.4,1326.3,0.67808548]
[1673312016569,35.40665898,1326.4,1326.0,8.35545522]
[1673312016910,34.120789,1326.1,1326.0,0.06465522]
[1673312017121,33.24883109,1326.1,1325.9,0.06465522]
[1673312017453,33.24883109,1326.1,1325.8,2.80689659]
[1673312017646,33.24883109,1326.1,1325.7,21.64412801]
[1673312017647,2.82656375,1326.0,1325.7,21.64412801]
[1673312017861,11.56407809,1326.1,1325.8,2.99251838]
[1673312018081,16.84405723,1326.1,1325.7,31.30334498]
[1673312018237,1.12989463,1326.0,1325.8,4.87146797]
[1673312018621,16.84405723,1326.1,1325.8,10.54246]
[1673312018759,1.13588633,1326.0,1325.8,13.41401181]
[1673312018970,0.00600255,1326.0,1325.8,13.41401181]
[1673312019211,2.26577464,1326.0,1325.8,13.41401181]
[1673312019391,8.67520404,1326.0,1325.8,5.87155181]
[1673312019601,0.06985889,1326.0,1325.8,13.41413181]
[1673312019810,0.00385889,1326.0,1325.8,15.30252441]
[1673312020022,7.54537889,1326.0,1325.8,15.30252441]
[1673312020293,7.61137889,1326.0,1325.8,15.30252441]
[1673312020435,0.06985889,1326.0,1325.8,15.30278766]
[1673312020646,0.00385889,1326.0,1325.8,15.30278824]
[1673312020899,1.19582434,1326.1,1325.9,2.5]
[1673312021113,10.97567388,1326.2,1326.1,1.12077299]
[1673312021287,2.89127388,1326.2,1326.1,1.12077299]
[1673312021511,1.12934665,1326.2,1326.1,23.74347299]
[1673312021696,1.12934665,1326.3,1326.1,11.72632821]
[1673312022262,2.82527388,1326.3,1326.1,11.72632821]
[1673312022432,2.82527388,1326.3,1326.1,14.68790121]
[1673312023719,2.82527388,1326.3,1326.1,22.22880121]
[1673312026303,2.82527388,1326.3,1326.1,29.76970121]
[1673312029730,1.12934665,1326.3,1326.1,29.76970121]
[1673312029913,2.82527388,1326.3,1326.1,29.76970121]
[1673312030131,1.12934665,1326.3,1326.1,29.76970121]
[1673312031578,2.82527388,1326.3,1326.1,29.76970121]
[1673312033427,1.12934665,1326.3,1326.1,29.76970121]
[1673312035602,2.82527388,1326.3,1326.1,29.76970121]
[1673312035816,1.12934665,1326.3,1326.1,29.76970121]
[1673312036198,2.82527388,1326.3,1326.1,29.76970121]
[1673312036461,1.12934665,1326.3,1326.1,29.76970121]
[1673312038112,1.17934665,1326.3,1326.1,29.76970121]
[1673312038864,2.87527388,1326.3,1326.1,29.76970121]
[1673312039274,1.17934665,1326.3,1326.1,29.76970121]
[1673312039682,2.87527388,1326.3,1326.1,29.76970121]
[1673312040106,1.12934665,1326.3,1326.1,29.76970121]
[1673312040346,2.82527388,1326.3,1326.1,29.76970121]
[1673312041087,2.82527388,1326.3,1325.6,4.0364505]
[1673312041088,10.07417161,1326.2,1325.6,4.0364505]
[1673312041302,10.07417161,1326.2,1325.5,0.05]
[1673312041303,2.8246977,1325.8,1325.5,0.05]
[1673312041451,7.92215656,1325.7,1325.6,1.87178566]
[1673312041664,7.92215656,1325.7,1325.6,1.87186314]
[1673312041665,24.07837519,1325.7,1325.6,1.87186314]
[1673312042026,30.86591884,1325.7,1325.5,0.01]
[1673312042254,18.74283303,1325.6,1325.4,0.05580869]
[1673312042469,43.37604489,1325.5,1325.4,0.05580869]
[1673312042675,48.84060497,1325.5,1325.4,0.05580869]
[1673312042996,50.86314375,1325.5,1325.4,0.05580869]
[1673312043304,59.59853014,1325.5,1325.3,0.05580869]
[1673312043512,26.41652295,1325.4,1325.3,0.05580869]
[1673312043733,29.04983771,1325.4,1325.3,0.05580869]
[1673312044105,30.73920724,1325.4,1325.3,0.05580869]
[1673312044349,44.9309807,1325.4,1325.1,0.06866113]
[1673312044539,32.63112,1325.2,1325.1,1.13e-06]
[1673312044761,36.25961064,1325.2,1325.1,1.13e-06]
[1673312044995,36.49478064,1325.2,1325.1,1.13e-06]
[1673312045308,25.15109,1325.2,1325.1,1.13e-06]
[1673312046419,32.69712,1325.2,1325.1,1.13e-06]
[1673312052324,0.066,1325.2,1325.1,1.13e-06]
[1673312052507,15.72762889,1325.3,1325.1,1.13e-06]
[1673312052717,15.09206,1325.2,1325.1,1.13e-06]
[1673312052940,22.70409,1325.2,1325.1,1.13e-06]
[1673312054452,22.75409,1325.2,1325.1,1.13e-06]
[1673312056501,22.70409,1325.2,1325.1,1.13e-06]
[1673312057169,22.65409,1325.2,1325.1,1.13e-06]
[1673312061124,21.53056803,1325.2,1325.1,1.13e-06]
[1673312073805,29.07659803,1325.2,1325.1,1.13e-06]
[1673312074017,32.63252785,1325.2,1325.1,1.13e-06]
[1673312074354,29.07659803,1325.2,1325.1,1.13e-06]
[1673312080034,30.76596756,1325.2,1325.1,1.13e-06]
[1673312081815,31.89650261,1325.2,1325.1,1.13e-06]
[1673312082497,1.19653505,1325.2,1325.1,1.13e-06]
[1673312082710,8.67656505,1325.2,1325.1,1.13e-06]
[1673312082971,8.74256505,1325.2,1325.1,1.13e-06]
[1673312083130,8.74256505,1325.2,1325.0,1.87268368]
[1673312083131,0.00321897,1325.1,1325.0,4.37268368]
[1673312083357,0.00321897,1325.1,1325.0,6.44721772]
[1673312083564,22.64301897,1325.1,1325.0,0.066]
[1673312083792,23.83955402,1325.1,1324.9,0.06440787]
[1673312085249,31.38615402,1325.1,1324.9,0.06440787]
[1673312086004,30.25561897,1325.1,1324.9,0.06440787]
[1673312086450,22.70901897,1325.1,1324.9,0.06440787]
[1673312087021,22.70901897,1325.1,1324.9,2.56440787]
[1673312087460,22.70901897,1325.1,1324.9,3.67827797]
[1673312088911,22.70901897,1325.1,1324.9,2.56440787]
[1673312089380,22.70901897,1325.1,1324.9,3.66396744]
[1673312090429,22.70901897,1325.1,1324.9,1.16396744]
[1673312091280,22.70901897,1325.1,1324.9,3.66396744]
[1673312091659,22.70901897,1325.1,1324.9,1.16396744]
[1673312091964,23.83955402,1325.1,1324.9,1.16396744]
[1673312094420,23.83955402,1325.1,1324.9,3.66396744]
[1673312095229,0.06921897,1325.1,1325.0,1.8726115]
[1673312095459,0.00321897,1325.1,1325.0,4.8019444]
[1673312096373,7.54981897,1325.1,1325.0,4.8019444]
[1673312096589,7.61581897,1325.1,1325.0,4.8019444]
[1673312097683,15.16241897,1325.1,1325.0,1.8726115]
[1673312098207,15.16241897,1325.1,1324.9,2.34383754]
[1673312098369,22.70901897,1325.1,1324.9,5.27783754]
[1673312098589,22.70901897,1325.1,1324.9,5.34383754]
[1673312098791,15.16241897,1325.1,1324.9,4.22996744]
[1673312098999,15.16241897,1325.1,1324.9,4.16396744]
[1673312099226,8.74635402,1325.1,1324.9,6.97315247]
[1673312099438,8.74635402,1325.1,1324.9,7.03915247]
[1673312101106,7.61581897,1325.1,1324.9,7.03915247]
[1673312101319,8.7465354,1325.1,1324.9,7.03915247]
[1673312101520,16.2931354,1325.1,1324.9,7.03915247]
[1673312101727,16.29316761,1325.1,1324.9,7.03915247]
[1673312102576,8.74656761,1325.1,1324.9,4.22996744]
[1673312102782,8.74656761,1325.1,1324.9,4.16396744]
[1673312103267,25.52913714,1325.1,1324.9,4.16396744]
[1673312103421,17.98253714,1325.1,1324.9,4.16396744]
[1673312104051,16.34316761,1325.1,1324.9,4.1602463]
[1673312104511,15.21241897,1325.1,1324.9,4.1602463]
[1673312104728,23.88982827,1325.1,1324.9,4.1602463]
[1673312104912,22.75901897,1325.1,1324.9,4.1602463]
[1673312105104,23.88982979,1325.1,1324.9,4.1602463]
[1673312105319,22.75901897,1325.1,1324.9,4.1602463]
[1673312105955,23.83994582,1325.1,1324.9,4.1602463]
[1673312106253,16.293346,1325.1,1324.9,4.1602463]
[1673312106465,16.29335107,1325.1,1324.9,4.1602463]
[1673312106675,15.16241897,1325.1,1324.9,4.1602463]
[1673312106890,16.29335211,1325.1,1324.9,6.9694024]
[1673312107146,16.29335211,1325.1,1324.9,4.2262463]
[1673312107310,23.83995211,1325.1,1324.9,4.1602463]
[1673312107729,25.52932164,1325.1,1324.9,4.1602463]
[1673312109437,22.70901897,1325.1,1324.9,4.1602463]
[1673312109628,23.84009328,1325.1,1324.9,4.1602463]
[1673312109841,22.70901897,1325.1,1324.9,4.1602463]
[1673312110055,23.84028654,1325.1,1324.9,4.1602463]
[1673312110409,23.84028658,1325.1,1324.9,4.1602463]
[1673312110599,22.70901897,1325.1,1324.9,4.1602463]
[1673312110774,23.84028905,1325.1,1324.9,4.1602463]
[1673312110980,23.84029078,1325.1,1324.9,4.1602463]
[1673312111191,22.70901897,1325.1,1324.9,4.1602463]
[1673312111421,25.53719858,1325.1,1324.9,4.1602463]
[1673312111630,24.40592677,1325.1,1324.9,4.1602463]
[1673312111842,25.53754535,1325.1,1324.9,4.1602463]
[1673312112054,22.70901897,1325.1,1324.9,4.1602463]
[1673312112358,25.53755647,1325.1,1324.9,4.1602463]
[1673312116082,23.84046319,1325.1,1324.9,4.1602463]
[1673312116243,25.53766857,1325.1,1324.9,4.1602463]
[1673312117847,25.53766857,1325.1,1324.9,3.06068673]
[1673312117848,1.13145892,1325.0,1324.9,3.06068673]
[1673312118198,15.09432,1325.0,1324.9,4.93346289]
[1673312118373,16.29184001,1325.0,1324.9,4.93346289]
[1673312118602,7.61316,1325.0,1324.9,4.93346289]
[1673312119018,8.74467883,1325.0,1324.9,4.93346289]
[1673312119219,7.61316,1325.0,1324.9,4.93346289]
[1673312119545,8.74467619,1325.0,1324.9,4.93346289]
[1673312119858,7.61316,1325.0,1324.9,4.93346289]
[1673312121223,7.61316,1325.0,1324.9,4.6045108]
[1673312121430,0.066,1325.0,1324.9,4.6045108]
[1673312121764,25.53872415,1325.1,1324.9,4.6045108]
[1673312121929,25.53872415,1325.1,1324.9,2.73173464]
[1673312126889,2.89792415,1325.1,1325.0,3.79766064]
[1673312127119,0.00321897,1325.1,1325.0,14.80011697]
[1673312127337,0.00321897,1325.1,1325.0,24.0968501]
[1673312127503,0.00321897,1325.1,1325.0,31.6440101]
[1673312127854,0.00321897,1325.1,1325.0,32.74803823]
[1673312128060,0.00321897,1325.1,1325.0,35.55719433]
[1673312128372,0.00321897,1325.1,1325.0,43.10435433]
[1673312128584,1.13151857,1325.3,1325.0,43.10435433]
[1673312128804,1.13151857,1325.3,1325.1,10.13031705]
[1673312128958,1.13151857,1325.3,1325.1,25.93551217]
[1673312129319,1.13151857,1325.3,1325.1,33.48211217]
[1673312129538,1.13151857,1325.3,1325.2,2.5]
[1673312129851,1.13151857,1325.3,1325.2,10.04603]
[1673312130007,1.13151857,1325.3,1325.2,10.11203]
[1673312130366,1.13151857,1325.3,1325.2,7.61203]
[1673312131168,1.13151857,1325.3,1325.2,0.066]
[1673312131409,1.13151857,1325.3,1325.1,33.48119714]
[1673312131735,1.13151857,1325.3,1325.1,41.02755714]
[1673312131906,1.13151857,1325.3,1325.1,38.21898607]
[1673312132124,10.43964925,1325.4,1325.1,38.21898607]
[1673312132316,1.13151857,1325.3,1325.1,38.21898607]
[1673312132531,1.13151857,1325.3,1325.1,35.71898607]
[1673312133302,1.13151857,1325.3,1325.2,3.79766064]
[1673312133620,2.82870925,1325.4,1325.2,30.23764925]
[1673312133790,1.13151857,1325.4,1325.2,30.07364925]
[1673312137409,12.75851857,1325.5,1325.3,3.79766064]
[1673312137619,11.627,1325.5,1325.4,35.19722064]
[1673312137956,11.627,1325.5,1325.4,31.82364569]
[1673312138255,11.6247061,1325.5,1325.4,31.82364569]
[1673312138621,11.6247061,1325.5,1325.4,24.27875569]
[1673312139155,11.6247061,1325.5,1325.4,16.73386569]
[1673312140038,11.6247061,1325.5,1325.4,31.82364569]
[1673312140403,11.6247061,1325.5,1325.4,24.27875569]
[1673312140615,11.6247061,1325.5,1325.4,31.82364569]
[1673312141191,7.7480261,1325.5,1325.4,42.36853569]
[1673312141399,7.7480261,1325.5,1325.4,48.27808134]
[1673312141560,7.7480261,1325.5,1325.4,51.85494592]
[1673312141765,7.7480261,1325.5,1325.4,44.31005592]
[1673312141977,7.7480261,1325.5,1325.4,41.50238359]
[1673312142520,7.7480261,1325.5,1325.4,37.92551901]
[1673312143357,7.7480261,1325.5,1325.4,36.08037751]
[1673312144736,7.7480261,1325.5,1325.4,28.53548751]
[1673312144946,7.7480261,1325.5,1325.4,13.44570751]
[1673312145248,7.7480261,1325.5,1325.4,11.99570751]
[1673312145490,7.7480261,1325.5,1325.4,19.54059751]
[1673312145712,7.7480261,1325.5,1325.4,27.08548751]
[1673312146135,7.7480261,1325.5,1325.4,19.54059751]
[1673312146298,7.7480261,1325.5,1325.4,19.77059751]
[1673312147198,5.75125917,1325.5,1325.4,19.77059751]
[1673312147501,5.75125917,1325.5,1325.4,27.31548751]
[1673312147931,5.75125917,1325.5,1325.4,34.86037751]
[1673312150394,5.75125917,1325.5,1325.4,36.08837751]
[1673312152707,0.1104645,1325.8,1325.4,39.66732025]
[1673312152956,42.24759068,1326.1,1325.7,1.23]
[1673312153123,0.066,1325.9,1325.8,12.79027064]
[1673312153331,10.09330331,1326.2,1325.8,5.31366064]
[1673312153588,17.63379331,1326.2,1325.9,3.79766064]
[1673312153805,25.17458331,1326.2,1325.9,3.79766064]
[1673312153973,16.94698331,1326.2,1325.9,3.79766064]
[1673312154735,9.40619331,1326.2,1325.9,3.79766064]
[1673312154945,1.86570331,1326.2,1325.9,11.33957064]
[1673312155127,1.79970331,1326.2,1325.9,3.86366064]
[1673312155492,16.88061331,1326.2,1325.9,3.79766064]
[1673312155650,24.48718331,1326.2,1325.9,3.79766064]
[1673312156082,22.78999263,1326.2,1325.9,3.79766064]
[1673312156270,15.24942263,1326.2,1325.9,3.79766064]
[1673312156645,15.24923263,1326.2,1326.0,3.79766064]
[1673312157231,15.19923263,1326.2,1326.0,3.79766064]
[1673312157962,22.73961263,1326.2,1326.0,3.79766064]
[1673312158403,24.43680331,1326.2,1325.9,0.066]
[1673312158643,24.43680331,1326.2,1325.9,3.79766064]
[1673312158797,22.73961263,1326.2,1325.9,3.79766064]
[1673312159239,24.43680331,1326.2,1325.8,12.05819]
[1673312159463,24.43680331,1326.2,1325.8,27.42192325]
[1673312159464,22.73961263,1326.2,1325.8,27.42192325]
[1673312161788,24.43680331,1326.2,1325.8,27.42192325]
[1673312162627,37.84067236,1326.2,1325.8,7.09366064]
[1673312162795,1.69719068,1326.1,1325.8,3.066]
[1673312163011,22.62441,1326.0,1325.8,3.0]
[1673312163261,22.69041,1326.0,1325.8,3.0]
[1673312163874,23.81530115,1326.0,1325.8,3.0]
[1673312164610,23.81530115,1326.0,1325.7,0.066]
[1673312164928,23.81530115,1326.0,1325.7,3.0]
[1673312165905,25.51249183,1326.0,1325.7,3.0]
[1673312166289,1.12489115,1325.9,1325.7,3.0]
[1673312166495,22.62783,1325.8,1325.7,3.0]
[1673312166705,22.69383,1325.8,1325.7,3.0]
[1673312166965,7.60861,1325.8,1325.6,10.7993]
[1673312167179,0.066,1325.8,1325.7,26.42720064]
[1673312167502,18.04729115,1326.0,1325.8,1.12302549]
[1673312167503,0.066,1326.0,1325.8,1.12302549]
[1673312167815,17.97022183,1326.1,1325.8,19.98049613]
[1673312168002,25.51150183,1326.1,1325.8,12.50388613]
[1673312168216,1.12489115,1326.0,1325.8,12.50388613]
[1673312168599,1.12489115,1326.0,1325.8,15.00388613]
[1673312168810,1.12489115,1326.0,1325.8,22.54649613]
[1673312169020,2.82208183,1326.1,1325.8,30.62153808]
[1673312169280,1.12489115,1326.1,1325.8,23.07892808]
[1673312169444,1.12489115,1326.1,1325.8,30.62153808]
[1673312169861,1.12489115,1326.1,1325.9,2.5]
[1673312170076,8.66591115,1326.1,1325.9,10.04172]
[1673312170280,8.73191115,1326.1,1325.9,10.10772]
[1673312170491,16.27293115,1326.1,1325.9,0.066]
[1673312170700,33.05216183,1326.1,1325.8,4.96151613]
[1673312170972,22.62612,1325.9,1325.8,1.09785549]
[1673312171156,15.15008,1325.9,1325.8,1.09785549]
[1673312171904,22.69212,1325.9,1325.8,1.09785549]
[1673312172279,15.15008,1325.9,1325.8,1.09785549]
[1673312173452,7.60804,1325.9,1325.8,1.09785549]
[1673312173648,8.73293115,1325.9,1325.8,1.09785549]
[1673312175745,1.19089115,1325.9,1325.8,1.09785549]
[1673312175964,8.66693115,1325.9,1325.8,1.09785549]
[1673312176185,8.73293115,1325.9,1325.8,1.09785549]
[1673312177220,1.19089115,1325.9,1325.8,1.09785549]
[1673312177428,8.66693115,1325.9,1325.8,1.09785549]
[1673312177681,8.73293115,1325.9,1325.8,1.09785549]
[1673312178230,8.78293115,1325.9,1325.8,1.09785549]
[1673312179988,10.48012183,1325.9,1325.8,1.09785549]
[1673312180197,10.43012183,1325.9,1325.8,1.09785549]
[1673312180373,10.48012183,1325.9,1325.8,1.09785549]
[1673312182256,9.30523068,1325.9,1325.8,1.09785549]
[1673312182472,10.43444554,1325.9,1325.8,1.09785549]
[1673312183014,11.56571171,1325.9,1325.8,1.09785549]
[1673312183366,9.30523068,1325.9,1325.8,1.09785549]
[1673312184401,9.35523068,1325.9,1325.8,1.09785549]
[1673312184797,16.89727068,1325.9,1325.8,1.09785549]
[1673312185008,9.35523068,1325.9,1325.8,1.09785549]
[1673312185735,11.61571171,1325.9,1325.8,1.09785549]
[1673312185950,11.61571171,1325.9,1325.8,1.81201409]
[1673312186424,11.56571171,1325.9,1325.8,1.81201409]
[1673312188482,11.61571171,1325.9,1325.8,1.81201409]
[1673312189166,11.61571171,1325.9,1325.8,1.80953827]
[1673312189167,19.15775171,1325.9,1325.8,1.80953827]
[1673312189514,11.61571171,1325.9,1325.8,1.80953827]
[1673312189992,9.91852103,1325.9,1325.8,1.80953827]
[1673312190591,9.86852103,1325.9,1325.8,1.80953827]
[1673312194384,2.32648103,1325.9,1325.8,1.80953827]
[1673312194563,9.80252103,1325.9,1325.8,1.80953827]
[1673312194774,9.86852103,1325.9,1325.8,1.80953827]
[1673312197801,12.69412231,1325.9,1325.8,1.80953827]
[1673312199012,35.32024231,1325.9,1325.8,1.80953827]
[1673312199261,27.77820231,1325.9,1325.8,1.80953827]
[1673312201175,27.82820231,1325.9,1325.8,1.80953827]
[1673312201973,9.91852103,1325.9,1325.8,1.80953827]
[1673312203117,9.86852103,1325.9,1325.8,1.80953827]
[1673312203352,4.02256902,1325.9,1325.8,1.80953827]
[1673312203568,3.95656902,1325.9,1325.8,1.80953827]
[1673312203951,11.49860902,1325.9,1325.8,1.80953827]
[1673312204161,11.56460902,1325.9,1325.8,1.80953827]
[1673312204424,4.02256902,1325.9,1325.8,1.80953827]
[1673312204583,3.95656902,1325.9,1325.8,1.80953827]
[1673312204792,11.49860902,1325.9,1325.8,1.80953827]
[1673312205052,11.56460902,1325.9,1325.8,1.80953827]
[1673312207348,11.61460902,1325.9,1325.8,1.80953827]
[1673312208489,19.15664902,1325.9,1325.8,1.80953827]
[1673312208924,17.46056103,1325.9,1325.8,1.80953827]
[1673312209243,17.41056103,1325.9,1325.8,1.80641742]
[1673312209450,20.23616231,1325.9,1325.8,1.80641742]
[1673312210738,17.41056103,1325.9,1325.8,1.80641742]
[1673312211140,20.23616231,1325.9,1325.8,1.80641742]
[1673312211887,17.41056103,1325.9,1325.8,1.80641742]
[1673312212097,20.23616231,1325.9,1325.8,1.80641742]
[1673312212307,12.6919302,1325.9,1325.8,1.80641742]
[1673312212846,9.86632892,1325.9,1325.8,1.80641742]